fUSD/lending_fUSD_20240531
["ID","MTS","AMOUNT","RATE_DAILY","PERIOD"]
[328334700,1717180238246,-1067.15768909,0.00032797,10]
[328334703,1717180240839,-196.79477061,0.00032742,2]
[328334704,1717180240849,-664.23093402,0.00032797,10]
[328334705,1717180240861,-473.31015174,0.00032797,10]
[328334706,1717180241621,-613.82737514,0.00032797,10]
[328334707,1717180241631,-3284.59650955,0.000328,7]
[328334709,1717180241833,-788.4738,0.000328,7]
[328334711,1717180241845,-535226.32075033,0.000328,7]
[328334713,1717180241854,-340.02736055,0.00032842,10]
[328334714,1717180241864,-2818.52614994,0.00032842,10]
[328334715,1717180241873,-340.02736055,0.00032887,10]
[328334716,1717180241883,-2818.52614994,0.00032887,10]
[328334717,1717180241892,-976.0749,0.00032897,2]
[328334718,1717180241905,-74570.66,0.00032897,2]
[328334719,1717180241914,-5817.643,0.00032897,2]
[328334720,1717180241923,-863.3871,0.00032899,2]
[328334721,1717180241933,-340.02736055,0.00032931,10]
[328334722,1717180241942,-2818.52614994,0.00032931,10]
[328334724,1717180241951,-340.02736055,0.00032976,10]
[328334725,1717180241961,-2818.52614994,0.00032976,10]
[328334726,1717180241971,-500.0,0.00032996,11]
[328334727,1717180241980,-38190.1845,0.00032997,2]
[328334728,1717180241989,-51765.09762232,0.00032997,2]
[328334729,1717180242001,-9213.72223532,0.00032997,2]
[328334730,1717180242012,-13413.02028337,0.00032997,2]
[328334731,1717180242024,-2005.06033688,0.00032997,2]
[328334805,1717180242869,-812.21439615,0.00032997,2]
[328334807,1717180242880,-469.55876227,0.00032997,2]
[328334809,1717180242891,-377.85012459,0.00032997,2]
[328334811,1717180243045,-888.50000003,0.00032997,2]
[328334812,1717180243057,-294.14994472,0.00032997,2]
[328334813,1717180243069,-6462.70172827,0.00032997,2]
[328334814,1717180243080,-1104.73378901,0.00032997,2]
[328334815,1717180243236,-1168.73075497,0.00032997,2]
[328334816,1717180243249,-462.31033771,0.00032997,2]
[328334820,1717180247763,-218.61371265,0.0001696,2]
[328334821,1717180247775,-196.79477059,0.00032807,2]
[328334822,1717180247787,-1699.43478175,0.00032997,2]
[328334823,1717180248151,-155.0,0.00032897,2]
[328334824,1717180248164,-2502.21750441,0.00032997,2]
[328334829,1717180424427,685074.71514189,0.00014,2]
[328334830,1717180424790,415.26408476,0.00034816,90]
[328334831,1717180428187,199.64759217,0.00034816,30]
[328334832,1717180428434,480.8452291,0.00034816,30]
[328334833,1717180429406,359.37191079,0.00034816,30]
[328334834,1717180431236,1511.62713235,0.00034816,30]
[328334835,1717180432416,830.61698813,0.00034816,30]
[328334836,1717180437904,745.81896402,0.00034816,120]
[328334837,1717180440898,695.55261243,0.00034816,30]
[328334838,1717180443971,453.57014937,0.00034816,30]
[328334839,1717180444091,290.56237886,0.00034816,30]
[328334840,1717180445108,572.48880317,0.00034816,30]
[328334841,1717180450578,182.39524722,0.00034816,120]
[328334842,1717180454510,174.3633421,0.00034816,120]
[328334843,1717180456582,437.94142801,0.00034816,30]
[328334844,1717180458452,919.21005317,0.00034816,120]
[328334845,1717180459037,1354.89119673,0.00034816,30]
[328334846,1717180459750,447.44305962,0.00034816,30]
[328334847,1717180460504,366.73565187,0.00034816,30]
[328334848,1717180460940,995.44151414,0.00034816,120]
[328334849,1717180466937,813.59073432,0.00034816,30]
[328334850,1717180470114,1365.73440941,0.00034816,120]
[328334851,1717180474827,821.3726536,0.00034816,30]
[328334852,1717180476487,656.7736589,0.00034816,30]
[328334853,1717180477403,259.16345392,0.00034816,120]
[328334854,1717180480157,1330.54458693,0.00034816,120]
[328334855,1717180484657,883.99635559,0.00034817,30]
[328334856,1717180487717,966.36254588,0.00034817,60]
[328334857,1717180491509,1476.5409734,0.00034817,30]
[328334858,1717180491733,196.53321028,0.00034817,30]
[328334859,1717180491930,914.01035973,0.00034817,30]
[328334860,1717180507918,331.55627964,0.00034817,30]
[328334861,1717180514568,862.86289395,0.00034817,30]
[328334862,1717180533616,2129.21,0.00025137,60]
[328334863,1717180542039,349.24721753,0.00034817,120]
[328334864,1717180552671,179.20649407,0.00034817,120]
[328334865,1717180560824,-268.78049174,0.00016472,2]
[328334866,1717180560851,-624.74565801,0.00016473,2]
[328334867,1717180560876,-209.1055224,0.00016474,2]
[328334868,1717180560900,-158.06112085,0.00016475,2]
[328334869,1717180560927,-7528.26513526,0.00016475,2]
[328334870,1717180560952,-282.43739626,0.00016476,2]
[328334871,1717180560978,-155.0,0.00016476,2]
[328334872,1717180561002,-5284.55875445,0.00016476,2]
[328334873,1717180561026,-4436.90604673,0.00016563,2]
[328334874,1717180561051,-150.0,0.00016649,2]
[328334875,1717180561075,-5814.4974,0.00016652,2]
[328334876,1717180561100,-9791.49922031,0.00016954,2]
[328334877,1717180561126,-150.99,0.00016954,2]
[328334878,1717180561151,-9253.16551015,0.0001696,2]
[328334879,1717180573334,706.50034396,0.00034817,120]
[328334880,1717180578612,298.14450764,0.00034817,120]
[328334881,1717180578641,334.79050571,0.00034817,30]
[328334882,1717180582079,193.79,0.00028844,120]
[328334883,1717180582925,1806.92841978,0.00034817,120]
[328334884,1717180585281,545.89851395,0.00034817,30]
[328334885,1717180585583,1500.0,0.00030137,30]
[328334886,1717180586856,382.47761467,0.00034817,120]
[328334887,1717180586922,560.95897607,0.00034817,120]
[328334888,1717180587027,1353.36790578,0.00034817,120]
[328334889,1717180588853,1203.96201524,0.00034817,30]
[328334890,1717180591236,1041.63407233,0.00034817,120]
[328334892,1717180597824,308.51632692,0.00034817,120]
[328334893,1717180598762,893891.98774384,0.00013,2]
[328334894,1717180598786,705426.60300854,0.00013,2]
[328334895,1717180608107,230.48119511,0.00034817,120]
[328334896,1717180608630,840.73714614,0.00034817,30]
[328334897,1717180626988,940.92004151,0.00034817,120]
[328334898,1717180629389,192.17152311,0.00034817,30]
[328334899,1717180629736,2766.17202066,0.00034817,120]
[328334900,1717180631036,296.63201452,0.00034817,120]
[328334901,1717180631561,340.95126454,0.00034817,30]
[328334902,1717180632903,399.32069934,0.00034817,120]
[328334903,1717180632946,398.27301659,0.00034817,120]
[328334904,1717180633030,244.19726692,0.00034817,120]
[328334905,1717180633059,251.70650715,0.00034817,30]
[328334906,1717180633194,1535.76421553,0.00034817,30]
[328334907,1717180633226,876.10090957,0.00034817,30]
[328334908,1717180633470,325.6677256,0.00034817,120]
[328334909,1717180633515,1655.06448039,0.00034817,120]
[328334910,1717180633956,598.07112113,0.00034817,120]
[328334911,1717180634113,925.13616734,0.00034817,30]
[328334912,1717180635431,1385.15335507,0.00034817,30]
[328334913,1717180636401,1088.19041506,0.00034817,30]
[328334914,1717180637489,192.44587668,0.00034817,30]
[328334915,1717180637792,1730.53439561,0.00034817,120]
[328334917,1717180638994,1015.70205457,0.00034817,120]
[328334919,1717180651861,5247.92794893,0.00034817,60]
[328334920,1717180654185,1000.0,0.00034817,30]
[328334921,1717180658591,1000.0,0.00034817,30]
[328334922,1717180659369,1000.0,0.00034817,30]
[328334923,1717180662372,1000.0,0.00034817,30]
[328334924,1717180662775,1000.0,0.00034817,30]
[328334925,1717180663145,1000.0,0.00034817,30]
[328334926,1717180804352,1000.0,0.00034825,30]
[328334931,1717181141676,197.13,0.0002628,120]
[328334932,1717181144157,-251.23012888,0.00017244,2]
[328334933,1717181144181,-1239.14423637,0.00017244,2]
[328334941,1717181432186,-718.3503353,0.00017231,2]
[328334942,1717181432196,-1181.55417799,0.00017231,2]
[328334943,1717181432206,-1259.69280578,0.00017232,2]
[328334944,1717181432215,-282.43739626,0.0001724,2]
[328334945,1717181432225,-535.29274514,0.00017241,2]
[328334946,1717181432234,-299.33734552,0.00017244,2]
[328334947,1717181432244,-155.0,0.00017244,2]
[328334948,1717181432253,-150.0,0.00017258,2]
[328334949,1717181432262,-2365.55841434,0.00017259,2]
[328334950,1717181432272,-499.99,0.00017534,2]
[328334951,1717181432281,-1557.96,0.00017808,2]
[328334952,1717181432290,-312.94,0.00017808,2]
[328334953,1717181432300,-1047.680114,0.00018605,2]
[328334954,1717181432309,-263.72,0.00018699,2]
[328334955,1717181432319,-937.27,0.00018794,2]
[328334956,1717181432329,-150.99,0.00018794,2]
[328334957,1717181432339,-465.7,0.00018794,2]
[328334958,1717181432349,-210.0,0.00018984,2]
[328334959,1717181432358,-1801.29,0.00018985,2]
[328334960,1717181432367,-150.0,0.00019315,2]
[328334961,1717181432377,-9729.26,0.00019351,2]
[328334962,1717181432386,-14484.35,0.00019351,2]
[328334963,1717181432395,-1778.7,0.00019351,2]
[328334964,1717181432406,-29999.99,0.00019351,2]
[328334965,1717181432416,-683.91279556,0.000199,3]
[328334966,1717181432426,-187.20328758,0.00020144,2]
[328334967,1717181432435,-4821.74,0.00020145,2]
[328334968,1717181432444,-293.0,0.00020882,2]
[328334969,1717181432453,-722.44,0.00023857,2]
[328334970,1717181432462,-999.88920134,0.00024,3]
[328334971,1717181432471,-162.08,0.00024384,2]
[328334972,1717181432480,-896.28,0.00025494,2]
[328334973,1717181432490,-2695.92,0.00025569,2]
[328334974,1717181432499,-2254.26,0.00025635,2]
[328334975,1717181432508,-250.0,0.00025682,2]
[328334976,1717181432518,-250.0,0.00025798,2]
[328334977,1717181432528,-200.0,0.00025815,2]
[328334978,1717181432537,-150.0,0.00025853,2]
[328334979,1717181432549,-722.44,0.00026121,2]
[328334980,1717181432558,-23890.0,0.00026438,2]
[328334982,1717181432567,-1303.13,0.00026503,2]
[328334985,1717181432577,-177.68,0.00026828,2]
[328334987,1717181432587,-186.67,0.00027142,2]
[328334990,1717181432596,-186.67,0.00027613,2]
[328334993,1717181432605,-165.61,0.000277,2]
[328334996,1717181432614,-165.61,0.0002777,2]
[328334999,1717181432626,-165.61,0.00027839,2]
[328335001,1717181432636,-186.67,0.00028085,2]
[328335003,1717181432645,-2254.26,0.00028375,2]
[328335005,1717181432655,-722.44,0.00028385,2]
[328335006,1717181432664,-170.0,0.00028395,2]
[328335007,1717181432673,-186.67,0.00028556,2]
[328335008,1717181432682,-896.28,0.00028681,2]
[328335009,1717181432691,-506.0,0.00029,7]
[328335010,1717181432700,-1000.0,0.00029,7]
[328335011,1717181432710,-1000.0,0.00029,7]
[328335012,1717181432719,-722.44,0.00030649,2]
[328335013,1717181432729,-2254.26,0.00031114,2]
[328335014,1717181432738,-8848.33045376,0.00031478,30]
[328335015,1717181432747,-896.28,0.00031868,2]
[328335016,1717181432756,-155.57019678,0.00031978,7]
[328335017,1717181432765,-154.3670907,0.00032206,7]
[328335018,1717181432775,-152.72526121,0.00032289,7]
[328335019,1717181432783,-416.48,0.00032329,2]
[328335020,1717181432792,-869.73,0.00032329,2]
[328335021,1717181432802,-416.48,0.00032329,2]
[328335022,1717181432811,-416.48,0.00032329,2]
[328335023,1717181432820,-415.58,0.00032329,2]
[328335024,1717181432829,-1141.0,0.000325,7]
[328335025,1717181432839,-4972.29329192,0.00032597,10]
[328335026,1717181432848,-152.72526121,0.00032634,7]
[328335027,1717181432857,-4972.29329192,0.00032664,10]
[328335028,1717181432866,-746.89195,0.0003267,2]
[328335029,1717181432875,-15578.7926,0.00032697,2]
[328335030,1717181432885,-3730.794,0.00032697,2]
[328335031,1717181432894,-462.3103,0.00032697,2]
[328335032,1717181432905,-412.17126416,0.00032716,2]
[328335033,1717181432914,-4972.29329192,0.00032731,10]
[328335034,1717181432923,-4572.5052,0.00032797,2]
[328335035,1717181432933,-2050.29,0.00032797,2]
[328335036,1717181432942,-58339.41270338,0.00032797,2]
[328335037,1717181438049,-2415.42535439,0.00032797,2]
[328335039,1717181438060,-705.8091,0.00032797,2]
[328335040,1717181438072,-572.13400403,0.00032797,2]
[328335041,1717181438256,-24798.3305382,0.00032797,2]
[328335042,1717181438265,-244.9121775,0.00032797,2]
[328335043,1717181438274,-4972.29329192,0.00032798,10]
[328335044,1717181438284,-1000.0,0.0003283,2]
[328335045,1717181438293,-244.91217745,0.00032855,2]
[328335046,1717181438303,-4972.29329192,0.00032865,10]
[328335047,1717181438312,-325.31801856,0.00032895,2]
[328335048,1717181438321,-500.0,0.00032896,2]
[328335049,1717181438331,-264.14105142,0.00032896,2]
[328335050,1717181438340,-556.12227119,0.00032896,4]
[328335051,1717181438349,-220.61243851,0.00032896,4]
[328335052,1717181438359,-31568.7333,0.00032897,2]
[328335053,1717181438368,-6918.0896,0.00032897,2]
[328335054,1717181438378,-19675.0487,0.00032897,2]
[328335055,1717181438387,-244.91217745,0.00032912,2]
[328335056,1717181438396,-722.44,0.00032913,2]
[328335057,1717181438405,-556.12227108,0.00032924,4]
[328335058,1717181438415,-4972.29329192,0.00032932,10]
[328335059,1717181438425,-556.12227108,0.00032951,4]
[328335060,1717181438434,-244.91217745,0.0003297,2]
[328335061,1717181438445,-264.1410514,0.00032972,2]
[328335062,1717181438455,-556.12227108,0.00032979,5]
[328335064,1717181438465,-169.67,0.00032994,2]
[328335066,1717181438474,-169.67,0.00032994,2]
[328335068,1717181438484,-169.67,0.00032994,2]
[328335070,1717181438493,-169.67,0.00032994,2]
[328335072,1717181438503,-169.67,0.00032994,2]
[328335074,1717181438512,-169.67,0.00032994,2]
[328335075,1717181438521,-500.0,0.00032995,11]
[328335077,1717181438530,-500.0,0.00032995,11]
[328335079,1717181438539,-500.0,0.00032995,11]
[328335080,1717181438554,-500.0,0.00032995,11]
[328335081,1717181438563,-500.0,0.00032995,11]
[328335082,1717181438572,-500.0,0.00032995,11]
[328335083,1717181438582,-500.0,0.00032995,11]
[328335084,1717181438592,-500.0,0.00032995,11]
[328335085,1717181438602,-500.0,0.00032995,11]
[328335086,1717181438611,-500.0,0.00032995,11]
[328335087,1717181438620,-500.0,0.00032995,11]
[328335088,1717181438632,-500.0,0.00032995,11]
[328335089,1717181438643,-500.0,0.00032995,11]
[328335090,1717181438652,-500.0,0.00032995,11]
[328335091,1717181438662,-552.37,0.00032995,11]
[328335092,1717181438695,-500.0,0.00032995,11]
[328335093,1717181438705,-500.0,0.00032995,11]
[328335094,1717181438714,-500.0,0.00032995,11]
[328335095,1717181438724,-500.0,0.00032995,11]
[328335096,1717181438733,-506.12,0.00032995,11]
[328335097,1717181438742,-500.0,0.00032995,11]
[328335098,1717181438751,-500.0,0.00032995,11]
[328335099,1717181438760,-500.0,0.00032995,11]
[328335100,1717181438770,-500.0,0.00032995,11]
[328335101,1717181438779,-500.0,0.00032995,11]
[328335102,1717181438788,-500.0,0.00032995,11]
[328335103,1717181438798,-500.0,0.00032995,11]
[328335104,1717181438807,-500.0,0.00032995,11]
[328335105,1717181438818,-500.0,0.00032995,11]
[328335106,1717181438828,-500.0,0.00032995,11]
[328335107,1717181438837,-641.19,0.00032995,11]
[328335108,1717181438847,-500.0,0.00032995,11]
[328335109,1717181438856,-500.0,0.00032995,11]
[328335110,1717181438866,-500.0,0.00032995,11]
[328335111,1717181438875,-539.81,0.00032995,11]
[328335112,1717181438885,-500.0,0.00032995,11]
[328335113,1717181438894,-500.0,0.00032995,11]
[328335114,1717181438904,-500.0,0.00032995,11]
[328335115,1717181438915,-244.65,0.00032995,11]
[328335116,1717181438924,-500.0,0.00032995,11]
[328335117,1717181438934,-500.0,0.00032995,11]
[328335118,1717181438943,-500.0,0.00032995,11]
[328335119,1717181438953,-289.41,0.00032995,11]
[328335120,1717181438962,-500.0,0.00032995,11]
[328335121,1717181438972,-528.57,0.00032995,11]
[328335122,1717181438981,-500.0,0.00032995,11]
[328335123,1717181438990,-500.0,0.00032995,11]
[328335124,1717181438999,-500.0,0.00032995,11]
[328335125,1717181439008,-507.50119341,0.00032995,11]
[328335126,1717181439018,-500.0,0.00032995,11]
[328335127,1717181439027,-500.0,0.00032995,11]
[328335128,1717181439036,-511.64571781,0.00032995,11]
[328335129,1717181439049,-500.0,0.00032995,11]
[328335130,1717181439059,-500.0,0.00032995,11]
[328335131,1717181439071,-328.70804117,0.00032995,11]
[328335132,1717181439081,-500.0,0.00032995,11]
[328335133,1717181439091,-500.0,0.00032995,11]
[328335134,1717181439101,-456.80577508,0.00032995,11]
[328335135,1717181439110,-500.0,0.00032995,11]
[328335136,1717181439120,-500.0,0.00032995,11]
[328335137,1717181439129,-500.0,0.00032995,11]
[328335138,1717181439139,-500.0,0.00032995,11]
[328335139,1717181439149,-500.0,0.00032995,11]
[328335140,1717181439158,-229.90997122,0.00032995,11]
[328335141,1717181439169,-648.46234022,0.00032995,11]
[328335142,1717181439178,-500.0,0.00032995,11]
[328335143,1717181439186,-183.60093415,0.00032995,11]
[328335144,1717181439196,-500.0,0.00032995,11]
[328335145,1717181439205,-500.0,0.00032995,11]
[328335146,1717181439215,-500.0,0.00032995,11]
[328335147,1717181439224,-500.0,0.00032995,11]
[328335148,1717181439234,-500.0,0.00032995,11]
[328335149,1717181439244,-500.0,0.00032995,11]
[328335150,1717181439254,-500.0,0.00032995,11]
[328335151,1717181439263,-500.0,0.00032995,11]
[328335152,1717181439273,-500.0,0.00032995,11]
[328335153,1717181439282,-500.0,0.00032995,11]
[328335154,1717181439292,-500.0,0.00032995,11]
[328335155,1717181439301,-500.0,0.00032995,11]
[328335156,1717181439311,-562.22,0.00032995,11]
[328335157,1717181439320,-500.0,0.00032995,11]
[328335158,1717181439330,-500.0,0.00032995,11]
[328335159,1717181439339,-498.66827007,0.00032995,11]
[328335160,1717181439349,-604.88,0.00032995,11]
[328335161,1717181439359,-500.0,0.00032995,11]
[328335162,1717181439368,-500.0,0.00032995,11]
[328335163,1717181439378,-500.0,0.00032995,11]
[328335164,1717181439387,-500.0,0.00032995,11]
[328335165,1717181439396,-500.0,0.00032995,11]
[328335166,1717181439406,-500.0,0.00032995,11]
[328335167,1717181439416,-500.0,0.00032995,11]
[328335168,1717181439426,-500.0,0.00032995,11]
[328335169,1717181439435,-500.0,0.00032995,11]
[328335170,1717181439444,-521.4143109,0.00032995,11]
[328335171,1717181439453,-500.0,0.00032995,11]
[328335172,1717181439463,-500.0,0.00032995,11]
[328335173,1717181439472,-500.0,0.00032995,11]
[328335174,1717181439482,-500.0,0.00032995,11]
[328335175,1717181439491,-500.0,0.00032995,11]
[328335176,1717181439500,-500.0,0.00032995,11]
[328335177,1717181439510,-500.0,0.00032995,11]
[328335178,1717181439519,-500.0,0.00032995,11]
[328335179,1717181439528,-500.0,0.00032995,11]
[328335180,1717181439538,-500.0,0.00032995,11]
[328335181,1717181439551,-500.0,0.00032995,11]
[328335182,1717181439562,-500.0,0.00032995,11]
[328335183,1717181439572,-500.0,0.00032995,11]
[328335184,1717181439581,-500.0,0.00032995,11]
[328335185,1717181439593,-500.0,0.00032995,11]
[328335186,1717181439608,-500.0,0.00032995,11]
[328335187,1717181439622,-536.34,0.00032995,11]
[328335188,1717181439635,-500.0,0.00032995,11]
[328335189,1717181439648,-500.0,0.00032995,11]
[328335190,1717181439659,-500.0,0.00032995,11]
[328335191,1717181439670,-500.0,0.00032995,11]
[328335192,1717181439682,-500.0,0.00032995,11]
[328335193,1717181439695,-177.88,0.00032995,11]
[328335194,1717181439706,-500.0,0.00032995,11]
[328335195,1717181439718,-500.0,0.00032995,11]
[328335196,1717181439730,-500.0,0.00032995,11]
[328335197,1717181439741,-500.0,0.00032995,11]
[328335198,1717181439753,-500.0,0.00032995,11]
[328335199,1717181439764,-500.0,0.00032995,11]
[328335200,1717181439776,-369.02,0.00032995,11]
[328335201,1717181439789,-500.0,0.00032995,11]
[328335202,1717181439803,-500.0,0.00032995,11]
[328335203,1717181439815,-500.0,0.00032995,11]
[328335204,1717181439826,-500.0,0.00032995,11]
[328335205,1717181439838,-500.0,0.00032995,11]
[328335206,1717181439849,-500.0,0.00032995,11]
[328335207,1717181439861,-500.0,0.00032995,11]
[328335208,1717181439873,-500.0,0.00032995,11]
[328335209,1717181439884,-500.0,0.00032995,11]
[328335210,1717181439896,-500.0,0.00032995,11]
[328335211,1717181439908,-500.0,0.00032995,11]
[328335212,1717181439922,-500.0,0.00032995,11]
[328335213,1717181439933,-500.0,0.00032995,11]
[328335214,1717181439945,-500.0,0.00032995,11]
[328335215,1717181439955,-500.0,0.00032995,11]
[328335216,1717181439965,-500.0,0.00032995,11]
[328335217,1717181439975,-394.47,0.00032995,11]
[328335218,1717181439987,-500.0,0.00032995,11]
[328335219,1717181439998,-500.0,0.00032995,11]
[328335220,1717181440016,-500.0,0.00032995,11]
[328335221,1717181440028,-500.0,0.00032995,11]
[328335222,1717181440040,-500.0,0.00032995,11]
[328335223,1717181440052,-500.0,0.00032995,11]
[328335224,1717181440065,-500.0,0.00032995,11]
[328335225,1717181440077,-500.0,0.00032995,11]
[328335226,1717181440090,-500.0,0.00032995,11]
[328335227,1717181440103,-500.0,0.00032995,11]
[328335228,1717181440115,-500.0,0.00032995,11]
[328335229,1717181440140,-500.0,0.00032995,11]
[328335230,1717181440150,-175.45,0.00032995,11]
[328335231,1717181440160,-500.0,0.00032995,11]
[328335232,1717181440171,-500.0,0.00032995,11]
[328335233,1717181440182,-500.0,0.00032995,11]
[328335234,1717181440194,-500.0,0.00032995,11]
[328335235,1717181440206,-500.0,0.00032995,11]
[328335236,1717181440217,-475.22736837,0.00032995,11]
[328335237,1717181440230,-500.0,0.00032995,11]
[328335238,1717181440240,-500.0,0.00032995,11]
[328335239,1717181440250,-500.0,0.00032995,11]
[328335240,1717181440261,-500.0,0.00032995,11]
[328335241,1717181440272,-500.0,0.00032995,11]
[328335242,1717181440283,-500.0,0.00032995,11]
[328335243,1717181440295,-500.0,0.00032995,11]
[328335244,1717181440307,-500.0,0.00032995,11]
[328335245,1717181440318,-183.33542378,0.00032995,11]
[328335246,1717181440338,-316.66457622,0.00032995,11]
[328335247,1717181440349,-500.0,0.00032995,11]
[328335248,1717181440359,-582.47,0.00032995,11]
[328335249,1717181440371,-500.0,0.00032995,11]
[328335250,1717181440382,-500.0,0.00032995,11]
[328335251,1717181440392,-500.0,0.00032995,11]
[328335252,1717181440403,-500.0,0.00032995,11]
[328335253,1717181440415,-500.0,0.00032995,11]
[328335254,1717181440426,-500.0,0.00032995,11]
[328335255,1717181440437,-500.0,0.00032995,11]
[328335256,1717181440448,-500.0,0.00032995,11]
[328335257,1717181440459,-500.0,0.00032995,11]
[328335258,1717181440469,-500.0,0.00032995,11]
[328335259,1717181440480,-500.0,0.00032995,11]
[328335260,1717181440491,-295.81,0.00032995,11]
[328335261,1717181440502,-500.0,0.00032995,11]
[328335262,1717181440512,-304.16450378,0.00032995,11]
[328335263,1717181440526,-195.83549622,0.00032995,11]
[328335264,1717181440537,-167.48092908,0.00032995,11]
[328335265,1717181440568,-332.51907092,0.00032995,11]
[328335266,1717181440579,-500.0,0.00032995,11]
[328335267,1717181440590,-500.0,0.00032995,11]
[328335268,1717181440603,-500.0,0.00032995,11]
[328335269,1717181440614,-500.0,0.00032995,11]
[328335270,1717181440626,-500.0,0.00032995,11]
[328335271,1717181440637,-500.0,0.00032995,11]
[328335272,1717181440647,-500.0,0.00032995,11]
[328335273,1717181440658,-500.0,0.00032995,11]
[328335274,1717181440670,-500.0,0.00032995,11]
[328335275,1717181440680,-500.0,0.00032995,11]
[328335276,1717181440691,-500.0,0.00032995,11]
[328335277,1717181440702,-500.0,0.00032995,11]
[328335278,1717181440713,-500.0,0.00032995,11]
[328335279,1717181440724,-500.0,0.00032995,11]
[328335280,1717181440735,-198.99,0.00032995,11]
[328335281,1717181440746,-500.0,0.00032995,11]
[328335282,1717181440756,-500.0,0.00032995,11]
[328335283,1717181440767,-500.0,0.00032995,11]
[328335284,1717181440777,-304.19873587,0.00032995,11]
[328335285,1717181441057,-195.80126413,0.00032995,11]
[328335286,1717181441069,-500.0,0.00032995,11]
[328335287,1717181441080,-500.0,0.00032995,11]
[328335288,1717181441091,-474.03,0.00032995,11]
[328335289,1717181441102,-978.48663806,0.00032995,2]
[328335290,1717181441112,-500.0,0.00032995,11]
[328335291,1717181441123,-500.0,0.00032995,11]
[328335292,1717181441133,-412.06,0.00032995,11]
[328335293,1717181441144,-500.0,0.00032995,11]
[328335294,1717181441154,-500.0,0.00032995,11]
[328335295,1717181441165,-500.0,0.00032995,11]
[328335296,1717181441175,-500.0,0.00032995,11]
[328335297,1717181441186,-500.0,0.00032995,11]
[328335298,1717181441196,-500.0,0.00032995,11]
[328335299,1717181441207,-500.0,0.00032995,11]
[328335300,1717181441218,-500.0,0.00032995,11]
[328335301,1717181441228,-500.0,0.00032995,11]
[328335302,1717181441239,-500.0,0.00032995,11]
[328335303,1717181441249,-500.0,0.00032995,11]
[328335304,1717181441260,-500.0,0.00032995,11]
[328335305,1717181441271,-500.0,0.00032995,11]
[328335306,1717181441281,-500.0,0.00032995,11]
[328335307,1717181441290,-500.0,0.00032995,11]
[328335308,1717181441300,-500.0,0.00032995,11]
[328335309,1717181441308,-500.0,0.00032995,11]
[328335310,1717181441317,-500.0,0.00032995,11]
[328335311,1717181441326,-500.0,0.00032995,11]
[328335312,1717181441335,-500.0,0.00032995,11]
[328335313,1717181441344,-500.0,0.00032995,11]
[328335314,1717181441507,-500.0,0.00032995,11]
[328335315,1717181441528,-500.0,0.00032995,11]
[328335316,1717181441537,-500.0,0.00032995,11]
[328335317,1717181441547,-500.0,0.00032995,11]
[328335318,1717181441559,-500.0,0.00032995,11]
[328335319,1717181441568,-500.0,0.00032995,11]
[328335320,1717181441577,-500.0,0.00032995,11]
[328335321,1717181441585,-500.0,0.00032995,11]
[328335322,1717181441596,-500.0,0.00032995,11]
[328335323,1717181441605,-500.0,0.00032995,11]
[328335324,1717181441614,-500.0,0.00032995,11]
[328335325,1717181441625,-500.0,0.00032995,11]
[328335326,1717181441634,-500.0,0.00032995,11]